bitfinex-derivatives/quotes_ETHF0:USTF0_20240910
["timestamp","ask_amount","ask_price","bid_price","bid_amount"]
[1725934170173,0.42715,2340.8,2340.7,0.42715]
[1725934170373,0.42715,2340.8,2340.6,1.17226]
[1725934171572,0.42715,2340.7,2340.6,1.17226]
[1725934173570,0.42715,2340.7,2340.6,2.28412551]
[1725934173981,0.42715,2340.8,2340.7,0.42715]
[1725934174182,0.42714,2340.8,2340.7,0.42715]
[1725934174382,0.42714,2340.8,2340.7,1.53901551]
[1725934175389,0.42714,2340.8,2340.7,0.42715]
[1725934176380,0.42714,2340.8,2340.7,1.53901551]
[1725934178983,0.42714,2340.8,2340.7,1.11186551]
[1725934179384,0.42715,2340.7,2340.6,1.85696551]
[1725934179586,0.81395,2340.7,2340.6,3.33059348]
[1725934180180,0.81395,2340.7,2340.6,3.75775348]
[1725934180380,0.81395,2340.7,2340.6,3.56858623]
[1725934180586,0.81395,2340.7,2340.6,3.02036096]
[1725934181689,0.81395,2340.7,2340.6,0.42716]
[1725934181690,0.3868,2340.7,2340.6,0.42716]
[1725934182587,0.42715,2340.8,2340.7,0.42715]
[1725934185193,0.42715,2340.7,2340.6,1.54674299]
[1725934186094,0.42717,2340.6,2340.5,1.52207299]
[1725934186291,0.42719,2340.5,2340.4,1.94848299]
[1725934186486,0.42719,2340.5,2340.4,1.12051243]
[1725934186686,0.42719,2340.5,2340.2,1.12051243]
[1725934186687,0.42723,2340.3,2340.2,1.12051243]
[1725934186893,0.42723,2340.3,2340.2,2.5955335]
[1725934187083,0.42723,2340.3,2340.2,1.12051243]
[1725934187291,0.42723,2340.3,2340.2,1.54775243]
[1725934187995,0.42723,2340.3,2340.2,0.42724]
[1725934188691,0.42722,2340.4,2340.3,0.42722]
[1725934188893,0.42721,2340.4,2340.3,1.12051243]
[1725934190399,0.42723,2340.3,2340.2,1.54774243]
[1725934190695,0.42723,2340.3,2340.2,3.02143257]
[1725934191297,0.42722,2340.4,2340.3,0.42722]
[1725934191500,10.75998814,2340.5,2340.4,0.42721]
[1725934191891,10.75998814,2340.5,2340.4,0.83061]
[1725934192993,11.18717814,2340.5,2340.4,0.83061]
[1725934194199,10.75998814,2340.5,2340.4,1.95002629]
[1725934194595,0.42718,2340.6,2340.5,0.42719]
[1725934194792,0.42718,2340.6,2340.5,0.79699]
[1725934194998,11.29487687,2340.6,2340.5,0.79699]
[1725934195300,0.42719,2340.5,2340.4,1.95000629]
[1725934195803,11.32088198,2340.5,2340.4,1.95000629]
[1725934196396,10.89369198,2340.5,2340.4,1.95000629]
[1725934196796,11.16428421,2340.6,2340.4,0.83059]
[1725934196994,0.42719,2340.6,2340.5,0.42719]
[1725934197302,11.16708451,2340.6,2340.5,0.42719]
[1725934198309,11.16708451,2340.6,2340.5,0.82459]
[1725934199498,10.73989451,2340.6,2340.5,0.82459]
[1725934199698,0.42717,2340.6,2340.5,0.82459]
[1725934201103,0.79955,2340.7,2340.6,0.42717]
[1725934201412,0.82874,2340.8,2340.6,0.42716]
[1725934201615,0.82874,2340.8,2340.7,0.4038]
[1725934201910,0.82874,2340.8,2340.7,0.83095]
[1725934202112,0.82874,2340.8,2340.7,0.4038]
[1725934202802,0.42717,2340.6,2340.5,0.3974]
[1725934203209,0.42717,2340.6,2340.4,1.95001629]
[1725934203409,0.79509,2340.5,2340.4,1.95001629]
[1725934203609,0.3679,2340.5,2340.4,1.95001629]
[1725934203810,0.3679,2340.5,2340.4,3.98638985]
[1725934204224,0.3679,2340.5,2340.4,2.49839826]
[1725934204404,0.3679,2340.5,2340.4,3.98641299]
[1725934205313,0.42716,2340.7,2340.5,0.42718]
[1725934205616,0.80617,2340.7,2340.5,1.54701452]
[1725934205912,0.42717,2340.6,2340.5,1.54701452]
[1725934206416,0.379,2340.7,2340.6,0.42717]
[1725934206417,0.80616,2340.7,2340.6,0.42717]
[1725934206618,0.80616,2340.7,2340.6,1.11983452]
[1725934207717,0.42717,2340.6,2340.5,1.54701452]
[1725934208015,0.42717,2340.6,2340.5,3.03511962]
[1725934209316,0.42717,2340.6,2340.5,3.5831296]
[1725934209511,0.42717,2340.6,2340.5,3.03519839]
[1725934210403,0.24528984,2341.0,2340.5,6.88081839]
[1725934210605,0.3938,2341.0,2340.8,0.42712]
[1725934210810,0.3826,2341.1,2340.9,1.60502]
[1725934211010,0.4271,2341.0,2340.9,1.60502]
[1725934211415,10.99414285,2341.0,2340.9,1.60502]
[1725934212117,10.99414285,2341.0,2340.9,1.1779]
[1725934212619,10.99414285,2341.0,2340.9,1.60502]
[1725934213315,10.99414285,2341.0,2340.9,1.1779]
[1725934213708,10.99414285,2341.0,2340.9,1.60502]
[1725934214606,0.82087,2341.2,2341.1,0.42708]
[1725934215005,0.42709,2341.1,2341.0,0.4271]
[1725934215209,2.05087,2341.2,2341.0,0.4271]
[1725934216004,2.05087,2341.2,2341.1,0.42708]
[1725934216209,0.3764,2341.3,2341.1,4.2712]
[1725934216510,0.80345,2341.3,2341.2,0.42706]
[1725934216713,0.80345,2341.3,2341.2,1.93252705]
[1725934217023,11.34081578,2341.3,2341.2,1.93252705]
[1725934217324,11.34081578,2341.3,2341.2,0.81266]
[1725934218709,11.34081578,2341.3,2341.2,0.3856]
[1725934221326,11.34081578,2341.3,2341.2,0.81266]
[1725934225920,10.91376578,2341.3,2341.1,0.42707]
[1725934226117,10.91376578,2341.3,2340.8,0.42712]
[1725934226118,1.4558,2341.2,2340.8,0.42712]
[1725934226322,0.42713,2340.9,2340.8,0.42713]
[1725934226526,12.90577433,2341.1,2340.7,0.82305]
[1725934226736,11.83806433,2341.1,2340.7,0.3959]
[1725934226916,0.3881,2341.2,2340.7,1.6259]
[1725934226917,1.6181,2341.2,2340.7,1.6259]
[1725934227123,0.81516,2341.2,2341.1,0.42708]
[1725934227624,0.81516,2341.2,2340.8,2.34986705]
[1725934227824,0.81516,2341.2,2340.7,3.81364705]
[1725934228127,0.81516,2341.2,2341.0,0.42708]
[1725934228627,0.3881,2341.2,2340.9,0.42711]
[1725934228811,0.42709,2341.1,2340.9,0.4271]
[1725934229326,0.42709,2341.1,2340.9,0.42711]
[1725934229327,0.42708,2341.1,2340.9,0.42711]
[1725934229825,1.6181,2341.2,2340.7,2.74576705]
[1725934230025,0.42711,2341.0,2340.9,0.42712]
[1725934231126,0.42711,2341.0,2340.8,0.42713]
[1725934231425,0.42711,2341.0,2340.9,0.42712]
[1725934233920,0.42711,2341.0,2340.8,0.42712]
[1725934234828,0.42711,2341.0,2340.9,0.42712]
[1725934237227,0.42709,2341.1,2341.0,0.42709]
[1725934240727,0.81518,2341.2,2341.1,0.42708]
[1725934241035,0.42709,2341.1,2341.0,0.42709]
[1725934241329,0.42713,2340.9,2340.6,0.3699]
[1725934241535,2.29771,2341.1,2340.6,0.7636]
[1725934241736,0.42711,2341.0,2340.9,0.42712]
[1725934243536,0.81169,2341.1,2341.0,0.4271]
[1725934244636,0.4271,2341.0,2340.9,0.4271]
[1725934245330,4.272,2341.0,2340.5,1.11986705]
[1725934245537,0.79142,2340.9,2340.8,0.42714]
[1725934246136,5.06342,2340.9,2340.8,0.42714]
[1725934246635,0.79142,2340.9,2340.8,0.42714]
[1725934246829,5.06342,2340.9,2340.8,0.42714]
[1725934247136,0.79142,2340.9,2340.8,0.42714]
[1725934247635,5.06342,2340.9,2340.8,0.42714]
[1725934247839,0.79142,2340.9,2340.8,0.42714]
[1725934248637,0.42714,2340.8,2340.7,0.42714]
[1725934249135,0.42715,2340.7,2340.6,1.54703705]
[1725934249328,1.17125,2340.7,2340.6,3.02979656]
[1725934249742,1.17125,2340.7,2340.6,3.02981043]
[1725934251230,1.17125,2340.7,2340.6,3.02996651]
[1725934252540,1.17125,2340.7,2340.6,3.57850747]
[1725934253845,0.79115,2340.7,2340.6,3.57850747]
[1725934254541,0.79115,2340.7,2340.6,3.95850747]
[1725934254735,0.79115,2340.7,2340.6,3.95914756]
[1725934255930,0.79115,2340.7,2340.6,1.92685788]
[1725934256139,0.79115,2340.7,2340.6,0.80717]
[1725934258045,0.79115,2340.7,2340.6,1.92685788]
[1725934258838,0.79115,2340.7,2340.6,0.80717]
[1725934259445,0.79115,2340.7,2340.6,1.92685788]
[1725934260347,0.79115,2340.7,2340.6,0.80717]
[1725934261548,0.42715,2340.7,2340.6,0.80717]
[1725934261739,0.42715,2340.7,2340.6,1.92685788]
[1725934262144,0.42715,2340.7,2340.6,0.80717]
[1725934262342,0.42715,2340.7,2340.6,1.18487]
[1725934262548,0.42715,2340.7,2340.6,0.80717]
[1725934264149,0.42715,2340.7,2340.6,2.98400505]
[1725934264348,0.42715,2340.7,2340.6,3.95929089]
[1725934264647,23.02878978,2340.7,2340.4,0.23173436]
[1725934264843,0.42721,2340.4,2340.3,0.23173436]
[1725934265045,0.42721,2340.4,2340.0,5.25577]
[1725934265046,0.42724,2340.2,2340.0,2.84156826]
[1725934265246,0.3755,2340.1,2340.0,2.84156826]
[1725934265441,0.3755,2340.1,2340.0,3.89456615]
[1725934265844,0.4273,2339.9,2339.8,1.66779826]
[1725934266048,0.42734,2339.7,2339.6,1.66779826]
[1725934266257,0.42734,2339.7,2339.5,2.60603102]
[1725934266258,1.23,2339.7,2339.5,0.3823]
[1725934266546,0.80285,2339.6,2339.5,0.3823]
[1725934266753,0.3755,2339.6,2339.5,0.3823]
[1725934267146,0.80285,2339.6,2339.5,0.3823]
[1725934268450,0.3755,2339.6,2339.5,0.3823]
[1725934268959,0.80285,2339.6,2339.5,0.3823]
[1725934269548,0.3755,2339.6,2339.5,0.3823]
[1725934270255,0.80285,2339.6,2339.5,0.3823]
[1725934271043,0.80285,2339.6,2339.3,0.3642]
[1725934271247,1.23,2339.4,2338.9,1.66779826]
[1725934271448,1.6574,2339.4,2339.1,0.42745]
[1725934271647,0.42741,2339.3,2339.1,41.22745]
[1725934271847,1.23,2339.4,2339.1,41.22745]
[1725934272152,1.65743,2339.2,2339.1,40.8]
[1725934272656,1.23,2339.2,2339.1,41.22745]
[1725934273654,0.42742,2339.3,2339.1,41.22745]
[1725934273953,0.42737,2339.5,2339.3,0.4274]
[1725934274152,0.42737,2339.5,2339.4,0.3752]
[1725934274454,10.94036638,2339.5,2339.4,0.739]
[1725934274651,15.21476638,2339.5,2339.4,0.739]
[1725934274952,10.94036638,2339.5,2339.4,0.739]
[1725934275940,10.51299638,2339.5,2339.4,0.739]
[1725934276145,10.94036638,2339.5,2339.4,0.739]
[1725934277754,10.51299638,2339.5,2339.4,1.16639]
[1725934278054,10.94036638,2339.5,2339.4,0.739]
[1725934278954,10.94036638,2339.5,2339.4,1.16639]
[1725934279142,10.51299638,2339.5,2339.4,1.16639]
[1725934279651,10.94036638,2339.5,2339.4,0.739]
[1725934281255,10.51299638,2339.5,2339.4,1.16639]
[1725934283241,0.82351,2339.9,2339.4,1.969]
[1725934283452,0.42732,2339.8,2339.4,1.969]
[1725934283648,11.12319055,2339.8,2339.4,1.969]
[1725934283852,11.12319055,2339.8,2339.6,0.42734]
[1725934284149,0.42734,2339.7,2339.6,0.42734]
[1725934284854,11.12320055,2339.8,2339.6,0.42734]
[1725934285054,0.42734,2339.7,2339.6,0.42734]
[1725934289463,10.69587055,2339.8,2339.7,0.42734]
[1725934289958,11.12319055,2339.8,2339.7,0.42734]
[1725934293750,11.12319055,2339.8,2339.4,0.739]
[1725934293957,11.12319055,2339.8,2339.7,0.42734]
[1725934296157,0.42734,2339.7,2339.6,0.42734]
[1725934296357,10.69587055,2339.8,2339.4,0.739]
[1725934297261,11.12320055,2339.8,2339.7,0.42734]
[1725934299758,10.69587055,2339.8,2339.4,0.739]
[1725934299958,11.12320055,2339.8,2339.7,0.42734]
[1725934305267,0.42734,2339.7,2339.6,0.42734]
[1725934305458,0.80454,2339.7,2339.6,0.42734]
[1725934305656,0.80454,2339.7,2339.4,0.739]
[1725934305862,0.81466,2339.6,2339.5,0.42736]
[1725934306261,0.3873,2339.6,2339.5,0.42736]
[1725934310470,0.81465,2339.6,2339.5,0.42736]
[1725934312371,0.3873,2339.6,2339.5,0.42736]
[1725934313374,0.81465,2339.6,2339.5,1.92663138]
[1725934313571,0.81465,2339.6,2339.5,1.92662312]
[1725934313775,0.81465,2339.6,2339.5,0.42736]
[1725934314073,0.3873,2339.6,2339.5,0.42736]
[1725934314865,0.81465,2339.6,2339.5,0.42736]
[1725934315674,0.42733,2339.8,2339.7,0.42734]
[1725934315969,10.8563534,2339.8,2339.7,0.42734]
[1725934316368,10.8563534,2339.8,2339.7,0.80754]
[1725934316784,10.8563534,2339.8,2339.7,2.30665963]
[1725934318775,10.8563534,2339.8,2339.7,0.80754]
[1725934319275,10.8563534,2339.8,2339.7,2.30697968]
[1725934320470,10.8563534,2339.8,2339.7,3.97477794]
[1725934322679,10.8563534,2339.8,2339.7,3.97503548]
[1725934323067,10.4290234,2339.8,2339.7,2.30723722]
[1725934323267,10.4290234,2339.8,2339.7,3.98860057]
[1725934327473,10.4290234,2339.8,2339.7,2.30819996]
[1725934327781,10.4290234,2339.8,2339.7,3.9906248]
[1725934327969,10.4290234,2339.8,2339.7,2.30819996]
[1725934329065,10.4290234,2339.8,2339.7,4.53193098]
[1725934329377,10.4290234,2339.8,2339.7,5.20007825]
[1725934329679,10.4290234,2339.8,2339.7,10.54202825]
[1725934329869,0.4883,2340.2,2340.1,0.42726]
[1725934330071,0.4883,2340.2,2340.1,1.92784121]
[1725934330072,0.7912,2340.2,2340.1,1.92784121]
[1725934330270,0.7912,2340.2,2340.1,3.61012689]
[1725934330579,0.4019,2340.2,2340.1,3.61012689]
[1725934330779,0.3833,2340.4,2340.1,3.61012689]
[1725934330780,2.0026,2340.4,2340.3,0.42723]
[1725934330969,0.42716,2340.7,2340.3,1.49970556]
[1725934331175,1.23,2340.8,2340.4,3.97800647]
[1725934331176,2.0212,2340.8,2340.4,3.97800647]
[1725934331368,2.44835,2340.8,2340.4,0.7961]
[1725934331573,10.52861486,2340.7,2340.6,0.42716]
[1725934331982,10.95576486,2340.7,2340.6,0.42716]
[1725934332778,10.52861486,2340.7,2340.6,0.42716]
[1725934334286,0.42717,2340.6,2340.4,0.7961]
[1725934334682,12.18578486,2340.7,2340.5,0.42718]
[1725934336379,12.18578486,2340.7,2340.6,0.42717]
[1725934336681,12.18578486,2340.7,2340.5,0.42718]
[1725934337079,10.95578486,2340.7,2340.5,0.42718]
[1725934337279,12.18578486,2340.7,2340.5,0.42718]
[1725934338987,0.42718,2340.6,2340.4,1.2233]
[1725934339685,0.42718,2340.6,2340.5,0.42719]
[1725934341777,11.75861486,2340.7,2340.5,0.42719]
[1725934341778,12.18578486,2340.7,2340.5,0.42719]
[1725934342390,0.42717,2340.6,2340.5,0.42719]
[1725934343690,10.95577486,2340.7,2340.6,0.42717]
[1725934343881,10.95577486,2340.7,2340.5,0.42718]
[1725934344090,10.95577486,2340.7,2340.6,0.42717]
[1725934344887,10.95577486,2340.7,2340.5,0.3993]
[1725934344888,0.42717,2340.6,2340.5,0.42719]
[1725934345288,0.42717,2340.6,2340.2,41.5941]
[1725934345289,5.72150525,2340.6,2340.2,0.82203]
[1725934345494,0.42722,2340.4,2340.2,0.42723]
[1725934345789,0.3671,2340.3,2340.2,0.42723]
[1725934346582,0.79433,2340.3,2340.2,0.42723]
[1725934347093,0.3671,2340.3,2340.2,0.42723]
[1725934347487,1.5971,2340.3,2340.0,0.3944]
[1725934347687,0.42729,2340.0,2339.9,0.4273]
[1725934347891,1.65729,2340.0,2339.8,0.81601]
[1725934348086,0.3736,2339.9,2339.8,0.42731]
[1725934348584,0.3736,2339.9,2339.8,0.79621]
[1725934349695,1.618,2340.0,2339.9,0.4273]
[1725934350193,2.04528,2340.0,2339.9,0.4273]
[1725934351296,1.618,2340.0,2339.9,0.4273]
[1725934351795,0.3736,2340.2,2339.9,4.2736]
[1725934351991,0.42723,2340.3,2340.0,0.3928]
[1725934352187,0.42723,2340.3,2340.1,0.80005]
[1725934352490,11.10995638,2340.3,2340.1,0.80005]
[1725934353398,0.42724,2340.2,2340.1,0.80005]
[1725934353693,11.21153897,2340.2,2340.1,0.80005]
[1725934354991,12.44153897,2340.2,2340.1,0.80005]
[1725934359498,0.4273,2340.0,2339.8,0.3689]
[1725934359805,12.01429897,2340.2,2339.8,0.79622]
[1725934359806,1.1909,2339.9,2339.8,0.79622]
[1725934360101,0.7636,2339.9,2339.8,0.79622]
[1725934360496,2.4209,2339.9,2339.8,0.3689]
[1725934360803,1.9936,2339.9,2339.8,0.42732]
[1725934361399,2.4209,2339.9,2339.8,0.42732]
[1725934361601,1.9936,2339.9,2339.8,0.42732]
[1725934362096,2.4209,2339.9,2339.8,0.42732]
[1725934362806,1.9936,2339.9,2339.8,0.42732]
[1725934363006,0.42727,2340.1,2339.9,0.4273]
[1725934363305,0.42727,2340.1,2340.0,0.3983]
[1725934371906,2.18549,2340.3,2340.2,0.42724]
[1725934371907,1.1174,2340.3,2340.2,0.42724]
[1725934372107,2.3474,2340.3,2340.1,0.7549]
[1725934372300,10.86604085,2340.2,2340.1,1.18216]
[1725934372802,2.77463,2340.3,2340.2,0.42724]
[1725934373110,13.3419229,2340.3,2340.1,1.18215]
[1725934374501,1.65724,2340.2,2340.1,0.42726]
[1725934374906,12.48512506,2340.2,2340.1,0.42726]
[1725934375693,12.05788506,2340.2,2340.1,0.42726]
[1725934376107,10.82788506,2340.2,2340.1,0.42726]
[1725934380005,2.77464,2340.3,2340.1,0.42726]
[1725934380904,2.77464,2340.3,2340.2,0.42724]
[1725934380905,0.7484,2340.3,2340.2,0.42724]
[1725934381506,1.17563,2340.3,2340.2,0.42724]
[1725934383408,0.7484,2340.3,2340.2,0.42724]
[1725934383804,1.17563,2340.3,2340.2,0.42724]
[1725934383995,0.7484,2340.3,2340.2,0.42724]
[1725934385295,0.3641,2340.3,2340.2,0.42724]
[1725934385798,2.4418,2340.5,2340.1,1.11958062]
[1725934385995,2.0598,2340.5,2340.4,0.42721]
[1725934386200,0.4272,2340.5,2340.4,0.42721]
[1725934386606,0.4272,2340.5,2340.3,0.82141]
[1725934386813,0.4272,2340.5,2340.4,0.42721]
[1725934387016,0.42721,2340.4,2340.3,0.82141]
[1725934387314,1.65721,2340.4,2340.3,0.3942]
[1725934387909,1.23,2340.4,2340.3,0.82143]
[1725934388807,1.65721,2340.4,2340.3,0.82143]
[1725934389213,1.23,2340.4,2340.3,0.82143]
[1725934389514,0.4272,2340.5,2340.4,0.42721]
[1725934392717,1.6022,2340.6,2340.5,0.42719]
[1725934392913,0.3722,2340.6,2340.5,0.42719]
[1725934393311,2.05976,2340.7,2340.6,0.42717]
[1725934393616,12.61319321,2340.7,2340.6,0.42717]
[1725934394312,10.55343321,2340.7,2340.6,0.42717]
[1725934394511,0.81165,2340.8,2340.7,0.42715]
[1725934394923,0.42715,2340.8,2340.7,0.42715]
[1725934395308,0.42713,2340.9,2340.8,0.42714]
[1725934395507,0.42709,2341.1,2340.7,1.23]
[1725934395710,0.42709,2341.1,2340.9,0.42712]
[1725934396024,10.47388988,2341.0,2340.9,0.42712]
[1725934396322,0.42709,2341.1,2341.0,0.4271]
[1725934396519,1.23,2341.1,2340.8,0.3847]
[1725934396710,2.29774,2341.1,2340.8,0.3847]
[1725934396911,0.42712,2340.9,2340.8,0.81183]
[1725934397320,0.79572,2340.9,2340.8,0.81183]
[1725934400419,0.79572,2340.9,2340.6,0.7442]
[1725934400618,0.79572,2340.9,2340.7,0.82545]
[1725934400820,0.79572,2340.9,2340.8,0.42714]
[1725934403626,0.42714,2340.8,2340.7,0.82544]
[1725934404021,0.42714,2340.8,2340.7,5.09744]
[1725934409723,0.42714,2340.8,2340.6,0.7442]
[1725934409724,0.42715,2340.7,2340.6,0.3713]
[1725934409927,0.42717,2340.6,2340.5,0.3655]
[1725934410121,1.57457,2340.6,2340.5,0.3655]
[1725934410331,2.80457,2340.6,2340.5,0.3655]
[1725934410537,0.42721,2340.4,2340.3,0.7591]
[1725934410739,1.65721,2340.4,2340.3,1.55183]
[1725934411033,1.65721,2340.4,2340.3,1.1246]
[1725934411332,1.65721,2340.4,2340.3,5.3974]
[1725934411333,0.42721,2340.4,2340.3,5.3974]
[1725934411833,0.42721,2340.4,2340.3,5.82463]
[1725934412236,0.42721,2340.4,2340.3,5.3974]
[1725934412736,0.42721,2340.4,2340.3,5.82463]
[1725934413724,0.42721,2340.4,2340.3,1.55183]
[1725934414135,0.42721,2340.4,2340.3,5.82463]
[1725934414345,0.42721,2340.4,2340.3,1.55183]
[1725934415829,1.23,2340.5,2340.3,5.3974]
[1725934416138,0.42721,2340.4,2340.3,1.55182]
[1725934416430,1.6572,2340.5,2340.3,1.1246]
[1725934416635,0.42721,2340.4,2340.3,1.55182]
[1725934416835,1.6572,2340.5,2340.4,0.42721]
[1725934417035,1.18708,2340.6,2340.5,0.42719]
[1725934417640,0.42716,2340.7,2340.3,1.1246]
[1725934417933,10.8706545,2340.6,2340.5,0.42718]
[1725934419333,10.4434845,2340.6,2340.5,0.42718]
[1725934421340,0.82295,2340.7,2340.6,0.42717]
[1725934426437,0.82295,2340.7,2340.5,0.42718]
[1725934426736,0.82295,2340.7,2340.3,1.1246]
[1725934426942,0.42718,2340.6,2340.5,0.42718]
[1725934427139,0.4272,2340.5,2340.3,1.1246]
[1725934427443,0.4272,2340.5,2340.3,1.18441]
[1725934427444,0.42721,2340.4,2340.3,1.18441]
[1725934427642,0.3907,2340.4,2340.3,1.18441]
[1725934429241,0.81791,2340.4,2340.3,1.18441]
[1725934429434,0.3907,2340.4,2340.3,1.18441]
[1725934430543,0.81791,2340.4,2340.3,1.18441]
[1725934435444,0.3907,2340.4,2340.3,1.18441]
[1725934437750,0.8176,2340.5,2340.4,0.42721]
[1725934438649,0.4272,2340.5,2340.4,0.42721]
[1725934440949,0.42719,2340.5,2340.4,0.42721]
[1725934443455,0.42721,2340.4,2340.3,1.18441]
[1725934443643,0.4272,2340.5,2340.4,0.42721]
[1725934443844,0.42721,2340.4,2340.3,1.18442]
[1725934444554,0.4272,2340.5,2340.4,0.42721]
[1725934446247,0.4272,2340.5,2340.4,0.22721]
[1725934446752,0.42721,2340.4,2340.3,2.30399062]
[1725934447054,0.42721,2340.4,2340.3,1.18441]
[1725934447250,0.4272,2340.5,2340.4,0.42721]
[1725934447455,0.4272,2340.5,2340.4,0.4272]
[1725934448551,0.42718,2340.6,2340.5,0.42718]
[1725934448748,0.42718,2340.6,2340.5,0.79368]
[1725934451866,0.42718,2340.6,2340.5,0.3665]
[1725934453958,0.42718,2340.6,2340.5,0.79369]
[1725934456563,0.42718,2340.6,2340.5,0.3665]
[1725934456758,0.42718,2340.6,2340.5,0.42719]
[1725934458860,0.42718,2340.6,2340.5,1.54677062]
[1725934460162,0.42718,2340.6,2340.5,0.42719]
[1725934460760,0.42719,2340.5,2340.4,1.54678062]
[1725934460959,0.42719,2340.5,2340.4,3.0545032]
[1725934461551,0.42718,2340.6,2340.5,0.42719]
[1725934462159,0.42718,2340.6,2340.5,1.11958062]
[1725934463561,0.42719,2340.5,2340.4,1.54677062]
[1725934463749,0.42719,2340.5,2340.4,3.05454913]
[1725934466066,0.42719,2340.5,2340.4,2.62735913]
[1725934466267,0.42719,2340.5,2340.4,1.54679062]
[1725934466952,0.42719,2340.5,2340.4,0.42721]
[1725934468670,1.49524,2340.4,2340.3,1.11958062]
[1725934468871,0.42723,2340.3,2340.2,1.54682062]
[1725934469174,0.42723,2340.3,2340.2,3.05476129]
[1725934469363,0.42723,2340.3,2340.2,1.54682062]
[1725934469768,0.21085367,2340.6,2340.2,1.11958062]
[1725934469965,0.42719,2340.6,2340.3,4.2308904]
[1725934470163,0.42719,2340.5,2340.4,0.8062]
[1725934470364,0.81949,2340.5,2340.4,1.1768]
[1725934470875,1.19179,2340.5,2340.4,1.1768]
[1725934472463,0.42719,2340.5,2340.4,1.1768]
[1725934475173,0.6462085,2340.6,2340.4,1.1768]
[1725934475472,0.2190185,2340.6,2340.5,0.42719]
[1725934475868,1.65716,2340.7,2340.6,0.42717]
[1725934476074,0.42716,2340.7,2340.5,0.42718]
[1725934476272,10.88453677,2340.6,2340.5,0.42718]
[1725934476473,0.099,2341.0,2340.5,11.5028]
[1725934476771,0.099,2341.2,2341.1,0.42708]
[1725934476961,10.97529657,2341.5,2341.3,0.42704]
[1725934477168,10.54827657,2341.5,2341.2,0.3903]
[1725934477367,0.42703,2341.4,2341.2,0.3903]
[1725934477971,12.20529657,2341.5,2341.3,0.42704]
[1725934478168,4.2712,2341.4,2341.3,0.42704]
[1725934478370,4.2712,2341.4,2340.5,0.3718]
[1725934478371,1.23,2341.1,2340.5,0.3718]
[1725934478679,0.42712,2340.9,2340.8,0.3702]
[1725934478884,1.65712,2340.9,2340.8,0.3702]
[1725934479766,0.42712,2340.9,2340.8,0.3702]
[1725934485478,0.42712,2340.9,2340.8,0.79734]
[1725934485972,0.42712,2340.9,2340.8,0.3702]
[1725934486479,0.42712,2340.9,2340.8,0.79734]
[1725934486679,0.79331,2341.0,2340.8,0.79734]
[1725934487080,11.06925438,2340.9,2340.8,0.79734]
[1725934487782,10.64213438,2340.9,2340.8,0.79734]
[1725934488282,11.06925438,2340.9,2340.8,0.79734]
[1725934494280,11.06925438,2340.9,2340.8,0.3702]
[1725934494490,12.13705438,2340.9,2340.8,0.3702]
[1725934494681,12.91425438,2340.9,2340.8,0.3702]
[1725934495082,11.84645438,2340.9,2340.8,0.3702]
[1725934501893,0.42714,2340.8,2340.7,0.3719]
[1725934502493,0.42714,2340.8,2340.4,0.4272]
[1725934502494,0.42719,2340.5,2340.4,0.4272]
[1725934502687,0.42719,2340.5,2340.3,0.42722]
[1725934502998,0.7565,2340.4,2340.3,0.42722]
[1725934503297,1.65714,2340.8,2340.2,4.155605]
[1725934503593,10.65074761,2340.7,2340.6,0.42717]
[1725934503892,11.07790761,2340.7,2340.5,0.79338]
[1725934504083,1.6065,2340.6,2340.3,1.937935]
[1725934504283,0.42721,2340.4,2340.3,0.3895]
[1725934504586,0.42721,2340.4,2340.2,0.42724]
[1725934505292,0.3765,2340.3,2340.2,0.42724]
[1725934511398,0.3765,2340.3,2340.2,2.16406106]
[1725934512289,0.3765,2340.3,2340.2,3.39406106]
[1725934512800,0.80373,2340.3,2340.2,3.39406106]
[1725934512994,0.80373,2340.3,2340.1,2.304155]
[1725934513197,0.80373,2340.3,2340.2,2.16405594]
[1725934513395,0.80373,2340.3,2340.2,1.09524613]
[1725934513701,0.80373,2340.3,2340.2,2.1641012]
[1725934514397,0.80373,2340.3,2340.2,2.5285012]
[1725934514795,0.80373,2340.3,2340.2,3.7585012]
[1725934515096,0.3765,2340.3,2340.2,3.7585012]
[1725934516893,0.80373,2340.3,2340.2,3.75845834]
[1725934517801,0.3765,2340.3,2340.2,3.75845834]
[1725934518103,0.3765,2340.3,2340.2,2.02164]
[1725934518603,0.80373,2340.3,2340.2,2.02164]
[1725934519420,0.3765,2340.3,2340.2,4.64731209]
[1725934521001,0.3765,2340.3,2340.2,3.41731209]
[1725934521200,0.3765,2340.3,2340.2,0.79164]
[1725934522100,0.3765,2340.3,2340.2,1.912845]
[1725934522800,10.76141774,2340.5,2340.4,0.42721]
[1725934523002,0.099,2341.0,2340.9,0.42712]
[1725934523303,0.7781,2341.4,2341.0,0.3775]
[1725934523496,0.099,2341.8,2341.3,1.23]
[1725934523693,0.67498033,2341.9,2341.6,2.34845656]
[1725934523910,10.56933017,2341.8,2341.7,1.11845656]
[1725934524098,0.42693,2342.0,2341.7,0.42697]
[1725934524296,3.02359,2342.3,2341.6,2.77543656]
[1725934524297,0.42694,2341.9,2341.6,2.77543656]
[1725934524603,0.42695,2341.8,2341.6,1.11845656]
[1725934524800,1.65696,2341.8,2341.5,1.11845656]
[1725934524999,1.65696,2341.8,2341.4,1.54547656]
[1725934525204,0.42697,2341.7,2341.4,1.11845656]
[1725934525503,0.42697,2341.7,2341.4,1.54547656]
[1725934525701,1.65696,2341.8,2341.5,0.42701]
[1725934526100,0.42696,2341.8,2341.5,0.42701]
[1725934526506,0.42697,2341.7,2341.4,0.42702]
[1725934526806,0.3835,2342.0,2341.3,2.67]
[1725934526992,0.42696,2341.8,2341.4,0.42703]
[1725934527198,0.42696,2341.8,2341.5,0.427]